[Event "Kadettallsvenskan 2018, sodra kvalet"]
[Site "Vegagatan 20, Gothenburg, Sweden"]
[Date "2018.04.15"]
[Round "4.2"]
[White "Nabbing, Oscar"]
[Black "Strom-Engdahl, Alexander"]
[Result "0-1"]
[TimeControl "45 minutes for the whole game + 10 seconds per move from move one."]
[WhiteFideId "1738313"]
[BlackFideId "1741586"]
[WhiteElo "1456"]
[BlackElo "1720"]

1. e4 {[%clk 00:45:18]} {[%emt 00:00:02]} Nf6 {[%clk 00:44:32]} {[%emt
00:00:49]} 2. Nc3 {[%clk 00:38:56]} {[%emt 00:06:31]} d5 {[%clk 00:41:03]}
{[%emt 00:03:38]} 3. e5 {[%clk 00:36:18]} {[%emt 00:02:48]} Ng8 {[%clk
00:40:13]} {[%emt 00:01:01]} 4. d4 {[%clk 00:35:52]} {[%emt 00:00:36]} e6
{[%clk 00:40:12]} {[%emt 00:00:11]} 5. Bd3 {[%clk 00:34:53]} {[%emt 00:01:09]}
c5 {[%clk 00:40:09]} {[%emt 00:00:13]} 6. Nf3 {[%clk 00:33:23]} {[%emt
00:01:39]} Nc6 {[%clk 00:39:45]} {[%emt 00:00:35]} 7. Bb5 {[%clk 00:24:46]}
{[%emt 00:08:47]} Nge7 {[%clk 00:37:23]} {[%emt 00:02:31]} 8. Bxc6+ {[%clk
00:18:53]} {[%emt 00:06:04]} Nxc6 {[%clk 00:36:40]} {[%emt 00:00:53]} 9. Ne2
{[%clk 00:18:59]} {[%emt 00:00:04]} Qb6 {[%clk 00:32:50]} {[%emt 00:04:00]} 10.
c3 {[%clk 00:18:01]} {[%emt 00:01:09]} Bd7 {[%clk 00:31:57]} {[%emt 00:01:03]}
11. Rb1 {[%clk 00:17:36]} {[%emt 00:00:35]} Rc8 {[%clk 00:30:22]} {[%emt
00:01:44]} 12. Be3 {[%clk 00:16:48]} {[%emt 00:00:58]} Be7 {[%clk 00:29:19]}
{[%emt 00:01:12]} 13. O-O {[%clk 00:16:26]} {[%emt 00:00:32]} O-O {[%clk
00:28:42]} {[%emt 00:00:47]} 14. Qd3 {[%clk 00:13:13]} {[%emt 00:03:24]} cxd4
{[%clk 00:24:27]} {[%emt 00:04:26]} 15. Nfxd4 {[%clk 00:12:32]} {[%emt
00:00:50]} Nxe5 {[%clk 00:23:44]} {[%emt 00:00:53]} 16. Qd2 {[%clk 00:09:28]}
{[%emt 00:03:15]} Nc4 {[%clk 00:23:27]} {[%emt 00:00:27]} 17. Qc1 {[%clk
00:09:00]} {[%emt 00:00:36]} Nxe3 {[%clk 00:23:00]} {[%emt 00:00:39]} 18. Qxe3
{[%clk 00:09:07]} {[%emt 00:00:03]} Bf6 {[%clk 00:22:37]} {[%emt 00:00:33]} 19.
h3 {[%clk 00:07:55]} {[%emt 00:01:21]} e5 {[%clk 00:21:41]} {[%emt 00:01:06]}
20. Nc2 {[%clk 00:07:38]} {[%emt 00:00:27]} Bf5 {[%clk 00:21:34]} {[%emt
00:00:17]} 21. Qxb6 {[%clk 00:07:21]} {[%emt 00:00:28]} axb6 {[%clk 00:21:35]}
{[%emt 00:00:09]} 22. Rbc1 {[%clk 00:07:25]} {[%emt 00:00:05]} Bd3 {[%clk
00:21:35]} {[%emt 00:00:10]} 23. Rfe1 {[%clk 00:06:52]} {[%emt 00:00:43]} Bg5
{[%clk 00:21:35]} {[%emt 00:07:42]} 24. Kf1 {[%clk 00:04:50]} Bxc1 {[%clk
00:21:37]} 25. Rxc1 {[%clk 00:04:59]} d4 {[%clk 00:21:32]} 26. Ke1 {[%clk
00:04:53]} Bxe2 {[%clk 00:21:36]} 27. Kxe2 {[%clk 00:04:57]} dxc3 {[%clk
00:21:41]} 28. Rb1 {[%clk 00:04:26]} cxb2 {[%clk 00:20:36]} 29. Rxb2 {[%clk
00:04:34]} Rfd8 {[%clk 00:20:24]} 30. Ne3 {[%clk 00:04:35]} Rc6 {[%clk
00:20:19]} 31. Rb5 {[%clk 00:03:59]} f6 {[%clk 00:20:15]} 32. Kf3 {[%clk
00:03:44]} {[%emt 00:00:10]} Kf7 {[%clk 00:19:59]} {[%emt 00:00:02]} 33. Nd5
{[%clk 00:03:20]} {[%emt 00:00:35]} Rc5 {[%clk 00:19:39]} {[%emt 00:00:30]} 34.
Rxc5 {[%clk 00:02:18]} {[%emt 00:01:12]} bxc5 {[%clk 00:19:45]} {[%emt
00:00:04]} 35. Ke4 {[%clk 00:02:26]} c4 {[%clk 00:19:20]} {[%emt 00:00:37]} 36.
g4 {[%clk 00:02:06]} {[%emt 00:00:30]} Rxd5 {[%clk 00:19:25]} {[%emt 00:00:05]}
37. Kxd5 {[%clk 00:02:14]} {[%emt 00:00:02]} c3 {[%clk 00:19:28]} {[%emt
00:00:07]} 38. Kd4 {[%emt 00:00:05]} 0-1

[Event "Kadettallsvenskan 2018, sodra kvalet"]
[Site "Vegagatan 20, Gothenburg, Sweden"]
[Date "2018.04.15"]
[Round "4.3"]
[White "Hattab, Nuhad"]
[Black "Carlander-Strandang, Love"]
[Result "0-1"]
[TimeControl "45 minutes for the whole game + 10 seconds per move from move one."]
[WhiteFideId "1738992"]
[BlackFideId "1739689"]
[WhiteElo "1447"]
[BlackElo "1339"]

1. e4 {[%clk 00:45:19]} {[%emt 00:00:27]} e5 {[%clk 00:45:16]} {[%emt
00:00:04]} 2. Nf3 {[%clk 00:45:24]} {[%emt 00:00:04]} Nc6 {[%clk 00:45:22]}
{[%emt 00:00:04]} 3. Nc3 {[%clk 00:45:25]} {[%emt 00:00:09]} Nf6 {[%clk
00:45:28]} {[%emt 00:00:05]} 4. g3 {[%clk 00:45:26]} {[%emt 00:00:06]} d5
{[%clk 00:45:35]} {[%emt 00:00:06]} 5. exd5 {[%clk 00:44:00]} {[%emt 00:01:36]}
Nxd5 {[%clk 00:45:37]} {[%emt 00:00:07]} 6. d3 {[%clk 00:38:25]} {[%emt
00:05:45]} Bc5 {[%clk 00:41:32]} {[%emt 00:04:15]} 7. h3 {[%clk 00:36:36]}
{[%emt 00:01:59]} O-O {[%clk 00:39:49]} {[%emt 00:01:54]} 8. Bg2 {[%clk
00:36:21]} {[%emt 00:00:25]} Nxc3 {[%clk 00:38:46]} {[%emt 00:01:13]} 9. bxc3
{[%clk 00:36:05]} {[%emt 00:00:26]} Re8 {[%clk 00:38:02]} {[%emt 00:00:54]} 10.
O-O {[%clk 00:33:40]} {[%emt 00:02:35]} Bf5 {[%clk 00:35:54]} {[%emt 00:02:17]}
11. Bb2 {[%clk 00:29:13]} {[%emt 00:04:37]} Qd7 {[%clk 00:33:32]} {[%emt
00:02:32]} 12. Kh2 Rad8 {[%clk 00:29:37]} {[%emt 00:06:06]} 13. Nh4 {[%clk
00:21:07]} Be6 {[%clk 00:22:32]} {[%emt 00:13:41]} 14. c4 {[%clk 00:12:21]} Nd4
{[%clk 00:19:33]} {[%emt 00:12:05]} 15. Nf3 {[%clk 00:08:11]} f6 {[%clk
00:16:00]} {[%emt 00:13:56]} 16. Nxd4 {[%clk 00:03:53]} Bxd4 {[%clk 00:15:50]}
17. Bxd4 {[%clk 00:01:14]} exd4 {[%clk 00:15:29]} {[%emt 00:02:15]} 18. Re1
{[%clk 00:00:59]} c6 {[%clk 00:14:35]} {[%emt 00:01:29]} 19. Qh5 {[%clk
00:00:38]} Bf5 {[%clk 00:12:54]} {[%emt 00:02:22]} 20. Rxe8+ {[%clk 00:00:19]}
Rxe8 {[%clk 00:12:51]} {[%emt 00:00:43]} 21. Qd1 {[%clk 00:00:18]} a6 {[%clk
00:12:08]} {[%emt 00:01:04]} 22. Qd2 {[%clk 00:00:18]} Qe6 {[%clk 00:11:09]}
{[%emt 00:01:19]} 0-1

[Event "Kadettallsvenskan 2018, sodra kvalet"]
[Site "Vegagatan 20, Gothenburg, Sweden"]
[Date "2018.04.15"]
[Round "4.6"]
[White "Nguyen, Gabriel"]
[Black "Bensryd, Hampus"]
[Result "1/2-1/2"]
[TimeControl "45 minutes for the whole game + 10 seconds per move from move one."]
[WhiteFideId "1720791"]
[BlackFideId "1738330"]
[WhiteElo "2024"]
[BlackElo "1918"]

1. d4 d5 2. Bf4 Nf6 3. Nc3 a6 4. e3 Bf5 5. Bd3 Bxd3 6. Qxd3 Nc6 7. a3 e6 8. Nf3
Bd6 9. Bg5 h6 10. Bxf6 Qxf6 11. O-O h5 12. e4 h4 13. e5 Qh6 14. h3 Be7 15. Ne2
f6 16. Rad1 fxe5 17. dxe5 g5 18. Ned4 {[%emt 00:00:07]} Nxd4 19. Nxd4 g4 20.
hxg4 {[%emt 00:00:08]} h3 {[%emt 00:00:03]} 21. Qxh3 {[%emt 00:00:02]} Qxh3
{[%emt 00:00:04]} 22. gxh3 Rxh3 {[%emt 00:00:02]} 23. Nxe6 {[%emt 00:00:02]}
Kd7 {[%emt 00:00:19]} 24. Nf4 {[%emt 00:00:04]} Rf3 {[%emt 00:00:11]} 25. Rxd5+
{[%emt 00:00:06]} Kc6 {[%emt 00:00:14]} 26. Rd4 Rg8 {[%emt 00:00:07]} 1/2-1/2

[Event "Kadettallsvenskan 2018, sodra kvalet"]
[Site "Vegagatan 20, Gothenburg, Sweden"]
[Date "2018.04.15"]
[Round "4.7"]
[White "Nord, Alexander"]
[Black "Batra, Sahil"]
[Result "1-0"]
[TimeControl "45 minutes for the whole game + 10 seconds per move from move one."]
[WhiteFideId "1738135"]
[BlackFideId "1745158"]
[WhiteElo "1763"]
[BlackElo "1487"]

1. c4 {[%clk 00:30:30]} d5 2. cxd5 {[%clk 00:30:30]} Qxd5 3. Nc3 {[%clk
00:30:30]} Qc5 4. d4 Qb6 5. Bf4 Bf5 6. e4 Bg6 7. Nb5 e5 {[%emt 00:00:09]} 8.
Bxe5 Bd6 {[%emt 00:00:02]} 9. Bxd6 {[%emt 00:00:32]} cxd6 {[%emt 00:00:02]} 10.
f3 {[%emt 00:00:12]} Nc6 {[%emt 00:00:13]} 11. Bc4 {[%clk 00:30:30]} {[%emt
00:00:21]} Nf6 12. Ne2 {[%clk 00:30:30]} O-O 13. Nec3 {[%clk 00:30:30]} Rfe8 14.
O-O {[%clk 00:30:30]} a6 15. Nxd6 {[%clk 00:30:30]} Re7 16. Kh1 {[%clk
00:30:30]} Nxd4 17. b3 {[%clk 00:30:30]} Qxd6 18. Nd5 {[%clk 00:30:30]} Nxd5 19.
Bxd5 {[%clk 00:30:30]} Nb5 1-0

[Event "Kadettallsvenskan 2018, sodra kvalet"]
[Site "Vegagatan 20, Gothenburg, Sweden"]
[Date "2018.04.15"]
[Round "4.8"]
[White "Larsson, Mille"]
[Black "Morell, Ludvig"]
[Result "1/2-1/2"]
[TimeControl "45 minutes for the whole game + 10 seconds per move from move one."]
[WhiteFideId "1749137"]
[BlackFideId "1736779"]
[WhiteElo "1374"]
[BlackElo "1517"]

1. e4 e5 2. Nf3 Nc6 3. Bc4 Bc5 4. O-O d6 5. c3 Bg4 6. h3 Bh5 7. g4 Bg6 8. d4
exd4 9. cxd4 Bb4 10. Qb3 Nh6 11. Nc3 Qf6 {[%emt 00:00:06]} 12. Nd5 1/2-1/2

[Event "Kadettallsvenskan 2018, sodra kvalet"]
[Site "Vegagatan 20, Gothenburg, Sweden"]
[Date "2018.04.15"]
[Round "4.9"]
[White "Johansson, William"]
[Black "Sahlstrom, Alex"]
[Result "1-0"]
[TimeControl "45 minutes for the whole game + 10 seconds per move from move one."]
[WhiteFideId "1744070"]
[BlackFideId "1739590"]
[WhiteElo "1462"]
[BlackElo "1351"]

1. d4 {[%clk 00:45:18]} {[%emt 00:00:01]} Nf6 {[%clk 00:45:15]} {[%emt
00:00:06]} 2. Bf4 {[%clk 00:45:20]} {[%emt 00:00:08]} d6 {[%clk 00:45:07]}
{[%emt 00:00:18]} 3. Nc3 {[%clk 00:45:18]} {[%emt 00:00:12]} Nbd7 {[%clk
00:44:54]} {[%emt 00:00:23]} 4. e4 {[%clk 00:45:22]} {[%emt 00:00:07]} e5
{[%clk 00:44:14]} {[%emt 00:00:49]} 5. dxe5 {[%clk 00:45:20]} {[%emt 00:00:12]}
dxe5 {[%clk 00:44:16]} {[%emt 00:00:08]} 6. Bg5 {[%clk 00:44:58]} {[%emt
00:00:32]} c6 {[%clk 00:43:31]} {[%emt 00:00:56]} 7. Nf3 {[%clk 00:37:57]}
{[%emt 00:07:10]} Be7 {[%clk 00:42:26]} {[%emt 00:01:15]} 8. Be2 {[%clk
00:30:43]} {[%emt 00:07:25]} Qc7 {[%clk 00:39:06]} {[%emt 00:03:30]} 9. O-O
{[%clk 00:25:55]} {[%emt 00:04:57]} Nc5 {[%clk 00:37:37]} {[%emt 00:01:39]} 10.
Bxf6 {[%clk 00:25:13]} {[%emt 00:00:52]} Bxf6 {[%clk 00:37:03]} {[%emt
00:00:44]} 11. b4 {[%clk 00:24:23]} {[%emt 00:01:01]} Ne6 {[%emt 00:03:14]} 12.
Rc1 {[%emt 00:05:20]} Nf4 {[%emt 00:12:27]} 13. Nd2 {[%emt 00:05:09]} Qd6
{[%emt 00:09:07]} 14. a3 {[%clk 00:10:06]} Bg5 {[%clk 00:16:29]} {[%emt
00:00:42]} 15. Nc4 {[%emt 00:08:46]} Qh6 {[%clk 00:06:26]} {[%emt 00:03:57]} 16.
Nd6+ {[%emt 00:01:22]} Kf8 {[%emt 00:01:22]} 17. Rb1 {[%emt 00:02:15]} Nxe2+
{[%clk 00:01:26]} {[%emt 00:04:22]} 18. Nxe2 {[%clk 00:04:06]} {[%emt
00:00:11]} Bg4 {[%clk 00:00:43]} {[%emt 00:00:53]} 19. f3 {[%clk 00:04:14]}
{[%emt 00:00:02]} Be3+ {[%clk 00:00:39]} {[%emt 00:00:13]} 20. Kh1 {[%clk
00:04:01]} {[%emt 00:00:22]} Bf4 {[%clk 00:00:34]} {[%emt 00:00:16]} 21. Nxf4
{[%clk 00:04:02]} {[%emt 00:00:09]} exf4 {[%clk 00:00:33]} {[%emt 00:00:11]} 22.
fxg4 {[%clk 00:04:09]} {[%emt 00:00:03]} Rd8 {[%clk 00:00:42]} {[%emt
00:00:02]} 23. e5 {[%clk 00:04:02]} {[%emt 00:00:17]} f6 {[%clk 00:00:37]}
{[%emt 00:00:15]} 24. Qf3 {[%clk 00:04:02]} {[%emt 00:00:09]} fxe5 {[%clk
00:00:34]} {[%emt 00:00:13]} 25. Nf5 {[%clk 00:04:10]} {[%emt 00:00:02]} Qf6
{[%clk 00:00:33]} {[%emt 00:00:12]} 26. Rbd1 {[%clk 00:04:16]} {[%emt
00:00:03]} g6 {[%clk 00:00:26]} {[%emt 00:00:17]} 27. Rxd8+ {[%clk 00:04:09]}
{[%emt 00:00:17]} Qxd8 {[%clk 00:00:35]} {[%emt 00:00:02]} 28. Ne3 {[%clk
00:03:48]} {[%emt 00:00:30]} Kg7 {[%clk 00:00:22]} {[%emt 00:00:24]} 29. Nc4
{[%clk 00:03:32]} {[%emt 00:00:26]} Qd4 {[%clk 00:00:20]} {[%emt 00:00:12]} 30.
Qd3 {[%clk 00:03:11]} {[%emt 00:00:31]} Qxd3 {[%clk 00:00:18]} {[%emt
00:00:12]} 31. cxd3 {[%clk 00:03:19]} {[%emt 00:00:01]} Rd8 {[%clk 00:00:27]}
{[%emt 00:00:01]} 32. Nxe5 {[%clk 00:03:22]} {[%emt 00:00:07]} Kf6 {[%clk
00:00:17]} {[%emt 00:00:20]} 33. Re1 {[%clk 00:03:09]} {[%emt 00:00:22]} Rxd3
{[%clk 00:00:20]} {[%emt 00:00:08]} 34. Nxd3 {[%clk 00:03:17]} {[%emt
00:00:02]} 1-0

[Event "Kadettallsvenskan 2018, sodra kvalet"]
[Site "Vegagatan 20, Gothenburg, Sweden"]
[Date "2018.04.15"]
[Round "5.1"]
[White "Lindholm, Gustav"]
[Black "Rasti, Arvin"]
[Result "0-1"]
[TimeControl "45 minutes for the whole game + 10 seconds per move from move one."]
[WhiteFideId "1736515"]
[BlackFideId "1741160"]
[WhiteElo "1803"]
[BlackElo "1920"]

1. d4 {[%clk 00:45:17]} {[%emt 00:00:03]} d5 {[%clk 00:45:13]} {[%emt
00:00:07]} 2. c4 {[%clk 00:45:18]} {[%emt 00:00:08]} c6 {[%clk 00:45:20]}
{[%emt 00:00:04]} 3. Nf3 {[%clk 00:45:17]} {[%emt 00:00:11]} e6 {[%clk
00:45:25]} {[%emt 00:00:05]} 4. e3 {[%clk 00:44:52]} {[%emt 00:00:35]} Nf6
{[%clk 00:45:18]} {[%emt 00:00:17]} 5. Nc3 {[%clk 00:44:48]} {[%emt 00:00:14]}
a6 {[%clk 00:44:47]} {[%emt 00:00:41]} 6. Qc2 {[%clk 00:44:10]} {[%emt
00:00:48]} Nbd7 {[%clk 00:44:26]} {[%emt 00:00:32]} 7. Bd2 {[%clk 00:43:32]}
{[%emt 00:00:48]} b5 {[%clk 00:43:54]} {[%emt 00:00:42]} 8. cxb5 {[%clk
00:41:39]} {[%emt 00:02:03]} cxb5 {[%clk 00:43:23]} {[%emt 00:00:42]} 9. Bd3
{[%clk 00:40:41]} {[%emt 00:01:06]} Bb7 {[%clk 00:42:36]} {[%emt 00:00:58]} 10.
Rc1 {[%clk 00:39:38]} {[%emt 00:01:13]} Rc8 {[%clk 00:41:41]} {[%emt 00:01:04]}
11. Qb1 {[%clk 00:38:52]} {[%emt 00:00:57]} Bd6 {[%clk 00:38:48]} {[%emt
00:03:03]} 12. O-O {[%clk 00:37:55]} {[%emt 00:01:06]} O-O {[%clk 00:37:03]}
{[%emt 00:01:56]} 13. Rfd1 {[%clk 00:36:25]} {[%emt 00:01:39]} Nb6 {[%clk
00:34:59]} {[%emt 00:02:15]} 14. a3 {[%clk 00:28:13]} {[%emt 00:08:23]} h6
{[%clk 00:32:58]} {[%emt 00:02:11]} 15. e4 {[%clk 00:25:30]} {[%emt 00:02:53]}
dxe4 {[%clk 00:30:17]} {[%emt 00:02:51]} 16. Nxe4 {[%clk 00:21:54]} {[%emt
00:03:46]} Rxc1 {[%clk 00:26:30]} {[%emt 00:03:57]} 17. Rxc1 {[%clk 00:21:21]}
{[%emt 00:00:43]} Nxe4 {[%clk 00:24:49]} {[%emt 00:01:51]} 18. Bxe4 {[%clk
00:20:58]} {[%emt 00:00:33]} Bxe4 {[%clk 00:24:35]} {[%emt 00:00:24]} 19. Qxe4
{[%clk 00:20:52]} {[%emt 00:00:16]} Nc4 {[%clk 00:24:08]} {[%emt 00:00:37]} 20.
Bc3 {[%clk 00:19:01]} {[%emt 00:01:59]} Qd7 {[%clk 00:20:45]} {[%emt 00:03:34]}
21. Nd2 {[%clk 00:16:52]} {[%emt 00:02:19]} Rc8 {[%clk 00:19:54]} {[%emt
00:01:01]} 22. Nxc4 {[%clk 00:15:44]} {[%emt 00:01:18]} Rxc4 {[%clk 00:16:05]}
{[%emt 00:03:59]} 23. Qa8+ {[%clk 00:14:08]} {[%emt 00:01:44]} Qc8 {[%clk
00:15:58]} {[%emt 00:00:19]} 24. Qxc8+ {[%clk 00:11:13]} {[%emt 00:03:05]} Rxc8
{[%clk 00:16:03]} {[%emt 00:00:05]} 25. Bd2 {[%clk 00:10:24]} {[%emt 00:00:59]}
Rd8 {[%clk 00:15:56]} {[%emt 00:00:17]} 26. Be3 {[%clk 00:08:00]} {[%emt
00:02:34]} Be7 {[%clk 00:15:45]} {[%emt 00:00:20]} 27. Rc6 {[%clk 00:07:14]}
{[%emt 00:00:58]} e5 {[%clk 00:14:45]} {[%emt 00:01:10]} 28. Rxa6 {[%clk
00:06:16]} {[%emt 00:01:08]} exd4 {[%clk 00:14:47]} {[%emt 00:00:08]} 29. Bd2
{[%clk 00:05:40]} {[%emt 00:00:46]} Rc8 {[%clk 00:14:12]} {[%emt 00:00:43]} 30.
Ra7 {[%clk 00:03:56]} {[%emt 00:01:57]} Bf6 {[%clk 00:13:35]} {[%emt 00:00:46]}
31. Kf1 {[%clk 00:02:33]} {[%emt 00:01:34]} Rc2 {[%clk 00:13:36]} {[%emt
00:00:09]} 32. Ke1 {[%clk 00:01:56]} {[%emt 00:00:46]} Rxb2 {[%clk 00:13:17]}
{[%emt 00:00:30]} 33. Rd7 {[%clk 00:01:18]} {[%emt 00:00:47]} 0-1

[Event "Kadettallsvenskan 2018, sodra kvalet"]
[Site "Vegagatan 20, Gothenburg, Sweden"]
[Date "2018.04.15"]
[Round "5.2"]
[White "Olsson, William"]
[Black "Strom-Engdahl, Alexander"]
[Result "1-0"]
[TimeControl "45 minutes for the whole game + 10 seconds per move from move one."]
[WhiteFideId "1741721"]
[BlackFideId "1741586"]
[WhiteElo "2178"]
[BlackElo "1720"]

1. Nf3 {[%clk 00:45:01]} {[%emt 00:00:14]} Nf6 {[%clk 00:44:45]} {[%emt
00:00:39]} 2. d4 {[%clk 00:44:30]} {[%emt 00:00:41]} g6 {[%clk 00:44:17]}
{[%emt 00:00:38]} 3. c4 {[%clk 00:43:58]} {[%emt 00:00:43]} c5 {[%clk
00:43:21]} {[%emt 00:01:05]} 4. d5 {[%clk 00:43:39]} {[%emt 00:00:29]} d6
{[%clk 00:43:20]} {[%emt 00:00:11]} 5. Nc3 {[%clk 00:43:45]} {[%emt 00:00:04]}
Bg7 {[%clk 00:42:53]} {[%emt 00:00:37]} 6. e4 {[%clk 00:42:54]} {[%emt
00:01:00]} Bg4 {[%clk 00:42:34]} {[%emt 00:00:29]} 7. Be2 {[%clk 00:42:53]}
{[%emt 00:00:11]} O-O {[%clk 00:41:05]} {[%emt 00:01:40]} 8. O-O {[%clk
00:42:11]} {[%emt 00:00:52]} Nbd7 {[%clk 00:40:36]} {[%emt 00:00:39]} 9. h3
{[%clk 00:42:10]} {[%emt 00:00:11]} Bxf3 {[%clk 00:40:40]} {[%emt 00:00:06]} 10.
Bxf3 {[%clk 00:42:14]} {[%emt 00:00:06]} a6 {[%clk 00:39:45]} {[%emt 00:01:04]}
11. a4 {[%clk 00:41:36]} {[%emt 00:00:49]} Qc7 {[%clk 00:38:24]} {[%emt
00:01:27]} 12. Be3 {[%clk 00:40:52]} {[%emt 00:00:58]} Rab8 {[%clk 00:36:25]}
{[%emt 00:02:09]} 13. Qd2 {[%clk 00:39:38]} {[%emt 00:01:23]} Rfc8 {[%clk
00:34:36]} {[%emt 00:02:00]} 14. Be2 {[%clk 00:37:03]} {[%emt 00:02:45]} Qa5
{[%clk 00:32:00]} {[%emt 00:02:46]} 15. Qc2 {[%clk 00:33:03]} {[%emt 00:04:10]}
Qb4 {[%clk 00:27:29]} {[%emt 00:04:40]} 16. a5 {[%clk 00:31:27]} {[%emt
00:01:49]} Nxe4 {[%clk 00:25:34]} {[%emt 00:02:05]} 17. Nxe4 {[%clk 00:30:06]}
{[%emt 00:01:31]} Qxb2 {[%clk 00:25:32]} {[%emt 00:00:11]} 18. Qxb2 {[%clk
00:30:03]} {[%emt 00:00:13]} Bxb2 {[%clk 00:25:37]} {[%emt 00:00:05]} 19. Rab1
{[%clk 00:30:08]} {[%emt 00:00:05]} Bg7 {[%clk 00:24:47]} {[%emt 00:01:00]} 20.
Bd2 {[%clk 00:28:58]} {[%emt 00:01:20]} Nf6 {[%clk 00:22:28]} {[%emt 00:02:28]}
21. Nxf6+ {[%clk 00:28:21]} {[%emt 00:00:47]} Bxf6 {[%clk 00:22:31]} {[%emt
00:00:07]} 22. Rb6 {[%clk 00:28:21]} {[%emt 00:00:11]} Kf8 {[%clk 00:14:18]}
{[%emt 00:08:23]} 23. Rfb1 {[%clk 00:28:20]} {[%emt 00:00:10]} Rc7 {[%clk
00:14:23]} {[%emt 00:00:07]} 24. Rxa6 {[%clk 00:27:37]} {[%emt 00:00:53]} 1-0